[Event "Early-Titled-Tuesday-Blitz-February-13-2024"]
[Site "Chess.com"]
[Date "2024.02.13"]
[Round "1"]
[White "GianmarcoVaR"]
[Black "GrotBchess"]
[Result "1-0"]
[WhiteElo "2706"]
[BlackElo "2371"]
[TimeControl "180+1"]
[EndTime "8:09:16 PST"]
[Termination "GianmarcoVaR won by checkmate"]

1. e4 {[%clk 0:03:00.9]} 1... c5 {[%clk 0:02:56.1]} 2. Nf3 {[%clk 0:02:58.6]}
2... e6 {[%clk 0:02:54.6]} 3. d4 {[%clk 0:02:55.1]} 3... cxd4 {[%clk 0:02:55]}
4. Nxd4 {[%clk 0:02:56]} 4... Nc6 {[%clk 0:02:54.9]} 5. Nc3 {[%clk 0:02:56.3]}
5... Nf6 {[%clk 0:02:55]} 6. Bf4 {[%clk 0:02:56.3]} 6... Bb4 {[%clk 0:02:52.1]}
7. Nb5 {[%clk 0:02:55.9]} 7... O-O {[%clk 0:02:48.7]} 8. a3 {[%clk 0:02:47.4]}
8... Ba5 {[%clk 0:02:44.6]} 9. Bd6 {[%clk 0:02:24.9]} 9... Re8 {[%clk
0:02:38.6]} 10. f3 {[%clk 0:02:16.8]} 10... a6 {[%clk 0:02:35.1]} 11. Nd4 {[%clk
0:02:13.8]} 11... Qb6 {[%clk 0:02:22.7]} 12. Nxc6 {[%clk 0:01:51.4]} 12... dxc6
{[%clk 0:02:06.3]} 13. b4 {[%clk 0:01:46.6]} 13... Qe3+ {[%clk 0:02:05.5]} 14.
Ne2 {[%clk 0:01:45.4]} 14... Bb6 {[%clk 0:02:05]} 15. Qd3 {[%clk 0:01:45.1]}
15... Qf2+ {[%clk 0:01:58.5]} 16. Kd2 {[%clk 0:01:43.6]} 16... Rd8 {[%clk
0:01:57.9]} 17. c4 {[%clk 0:01:40.4]} 17... Ne8 {[%clk 0:01:14.3]} 18. c5 {[%clk
0:01:36.2]} 18... a5 {[%clk 0:01:12.9]} 19. Qe3 {[%clk 0:01:26.9]} 19... Qxe3+
{[%clk 0:01:10]} 20. Kxe3 {[%clk 0:01:27.3]} 20... Nxd6 {[%clk 0:01:10.1]} 21.
Nd4 {[%clk 0:01:20.7]} 21... e5 {[%clk 0:01:01.3]} 22. Nc2 {[%clk 0:01:19.3]}
22... Ba7 {[%clk 0:00:59.6]} 23. Rd1 {[%clk 0:01:11]} 23... Nf5+ {[%clk
0:00:59.6]} 24. Ke2 {[%clk 0:01:08.5]} 24... Rxd1 {[%clk 0:00:58.1]} 25. Kxd1
{[%clk 0:01:09.4]} 25... Ne7 {[%clk 0:00:57.5]} 26. Bc4 {[%clk 0:01:09.3]} 26...
axb4 {[%clk 0:00:56.3]} 27. axb4 {[%clk 0:01:09.6]} 27... Be6 {[%clk 0:00:56]}
28. Bxe6 {[%clk 0:01:09.9]} 28... fxe6 {[%clk 0:00:56.3]} 29. Kc1 {[%clk
0:01:10.8]} 29... b6 {[%clk 0:00:44.2]} 30. cxb6 {[%clk 0:01:11.7]} 30... Bxb6
{[%clk 0:00:44.5]} 31. Kb2 {[%clk 0:01:10.1]} 31... Bd4+ {[%clk 0:00:42.9]} 32.
Kb3 {[%clk 0:01:10.7]} 32... Kf7 {[%clk 0:00:39.7]} 33. Kc4 {[%clk 0:01:10.5]}
33... Bb6 {[%clk 0:00:37.9]} 34. Kb3 {[%clk 0:01:07.5]} 34... c5 {[%clk
0:00:35.4]} 35. b5 {[%clk 0:01:06]} 35... Ra5 {[%clk 0:00:31.6]} 36. Na3 {[%clk
0:01:06.2]} 36... Nc8 {[%clk 0:00:25.2]} 37. Rd1 {[%clk 0:01:05.3]} 37... Ke7
{[%clk 0:00:24.5]} 38. h4 {[%clk 0:01:05.8]} 38... Nd6 {[%clk 0:00:23]} 39. h5
{[%clk 0:01:05]} 39... c4+ {[%clk 0:00:19.2]} 40. Kb4 {[%clk 0:01:03.2]} 40...
Rxa3 {[%clk 0:00:17.5]} 41. Kxa3 {[%clk 0:01:03.2]} 41... Nxb5+ {[%clk
0:00:17.7]} 42. Kb4 {[%clk 0:01:03.8]} 42... Nd6 {[%clk 0:00:17.9]} 43. Ra1
{[%clk 0:01:02.4]} 43... Bd4 {[%clk 0:00:16.1]} 44. Ra8 {[%clk 0:01:02.6]} 44...
c3 {[%clk 0:00:16.1]} 45. Kb3 {[%clk 0:00:57.9]} 45... Kf7 {[%clk 0:00:13.2]}
46. Rd8 {[%clk 0:00:54]} 46... Nb5 {[%clk 0:00:10.7]} 47. Rd7+ {[%clk
0:00:51.9]} 47... Kf6 {[%clk 0:00:10.4]} 48. g3 {[%clk 0:00:46]} 48... Na7
{[%clk 0:00:08.8]} 49. h6 {[%clk 0:00:40.3]} 49... gxh6 {[%clk 0:00:08.1]} 50.
Rxh7 {[%clk 0:00:41.2]} 50... Nc6 {[%clk 0:00:07.6]} 51. Rxh6+ {[%clk
0:00:41.2]} 51... Ke7 {[%clk 0:00:08.2]} 52. Rh8 {[%clk 0:00:37.1]} 52... Na5+
{[%clk 0:00:07.4]} 53. Kb4 {[%clk 0:00:35.6]} 53... c2 {[%clk 0:00:06.7]} 54.
Rc8 {[%clk 0:00:35.6]} 54... Nb7 {[%clk 0:00:03.7]} 55. Rxc2 {[%clk 0:00:35.4]}
55... Nd6 {[%clk 0:00:04.6]} 56. Kb3 {[%clk 0:00:27.5]} 56... Kf6 {[%clk
0:00:04.7]} 57. Rh2 {[%clk 0:00:26.6]} 57... Nf7 {[%clk 0:00:05.3]} 58. Kc2
{[%clk 0:00:23.5]} 58... Ng5 {[%clk 0:00:05.4]} 59. Rh1 {[%clk 0:00:24.4]} 59...
Kg6 {[%clk 0:00:04.4]} 60. Rf1 {[%clk 0:00:24.7]} 60... Nf7 {[%clk 0:00:04.7]}
61. Kd3 {[%clk 0:00:25]} 61... Ng5 {[%clk 0:00:04.9]} 62. Ke2 {[%clk 0:00:25]}
62... Nf7 {[%clk 0:00:05.1]} 63. Rb1 {[%clk 0:00:24.9]} 63... Ng5 {[%clk
0:00:05.6]} 64. Rb7 {[%clk 0:00:24.7]} 64... Kf6 {[%clk 0:00:06]} 65. Rb8 {[%clk
0:00:23.6]} 65... Nf7 {[%clk 0:00:06.5]} 66. Rg8 {[%clk 0:00:22.6]} 66... Ke7
{[%clk 0:00:06.2]} 67. Rg6 {[%clk 0:00:22.4]} 67... Nd6 {[%clk 0:00:05.7]} 68.
Kd3 {[%clk 0:00:22.5]} 68... Nf7 {[%clk 0:00:06.2]} 69. f4 {[%clk 0:00:22.7]}
69... Ba1 {[%clk 0:00:05.5]} 70. f5 {[%clk 0:00:22.3]} 70... Bd4 {[%clk
0:00:06]} 71. Rxe6+ {[%clk 0:00:22.3]} 71... Kf8 {[%clk 0:00:06.3]} 72. Rg6
{[%clk 0:00:23.2]} 72... Ke7 {[%clk 0:00:06]} 73. g4 {[%clk 0:00:23.5]} 73...
Bf2 {[%clk 0:00:05.8]} 74. Re6+ {[%clk 0:00:21.1]} 74... Kf8 {[%clk 0:00:05.5]}
75. Ke2 {[%clk 0:00:18.4]} 75... Bh4 {[%clk 0:00:06]} 76. Kd3 {[%clk 0:00:14.2]}
76... Kg7 {[%clk 0:00:06.1]} 77. Rg6+ {[%clk 0:00:13.3]} 77... Kf8 {[%clk
0:00:05.9]} 78. Ra6 {[%clk 0:00:13.9]} 78... Kg7 {[%clk 0:00:05.9]} 79. Kc4
{[%clk 0:00:14.2]} 79... Bf6 {[%clk 0:00:05.9]} 80. Kd5 {[%clk 0:00:14.3]} 80...
Bg5 {[%clk 0:00:06.1]} 81. Rg6+ {[%clk 0:00:13.8]} 81... Kf8 {[%clk 0:00:06.3]}
82. Re6 {[%clk 0:00:14.6]} 82... Kg7 {[%clk 0:00:05.9]} 83. Ra6 {[%clk
0:00:12.5]} 83... Bf6 {[%clk 0:00:06.2]} 84. Ra7 {[%clk 0:00:12.4]} 84... Kf8
{[%clk 0:00:05.8]} 85. Ke6 {[%clk 0:00:12.7]} 85... Bg5 {[%clk 0:00:05]} 86.
Rxf7+ {[%clk 0:00:12.4]} 86... Kg8 {[%clk 0:00:05.9]} 87. Rd7 {[%clk 0:00:12.2]}
87... Bf4 {[%clk 0:00:06.4]} 88. Kf6 {[%clk 0:00:12.4]} 88... Kf8 {[%clk
0:00:07.3]} 89. Rd8# {[%clk 0:00:12.7]} 1-0

[Event "Early-Titled-Tuesday-Blitz-February-13-2024"]
[Site "Chess.com"]
[Date "2024.02.13"]
[Round "1"]
[White "andrzej"]
[Black "KaterynaLagno"]
[Result "1-0"]
[WhiteElo "2474"]
[BlackElo "2808"]
[TimeControl "180+1"]
[EndTime "8:09:40 PST"]
[Termination "andrzej won by resignation"]

1. e4 {[%clk 0:03:00.9]} 1... e5 {[%clk 0:03:00.2]} 2. Nf3 {[%clk 0:03:01.3]}
2... Nc6 {[%clk 0:03:00.9]} 3. Bb5 {[%clk 0:03:02]} 3... a6 {[%clk 0:03:00.5]}
4. Ba4 {[%clk 0:03:02.6]} 4... d6 {[%clk 0:03:01.2]} 5. O-O {[%clk 0:02:58.5]}
5... Bd7 {[%clk 0:03:01.5]} 6. c4 {[%clk 0:02:49.4]} 6... Nf6 {[%clk 0:02:54.6]}
7. Nc3 {[%clk 0:02:48.2]} 7... Bg4 {[%clk 0:02:54]} 8. d3 {[%clk 0:02:41.6]}
8... Nd7 {[%clk 0:02:50.9]} 9. h3 {[%clk 0:02:40.6]} 9... Bxf3 {[%clk
0:02:48.6]} 10. Qxf3 {[%clk 0:02:40.4]} 10... Nd4 {[%clk 0:02:45.8]} 11. Qg3
{[%clk 0:02:35.1]} 11... c6 {[%clk 0:02:30.4]} 12. Bd1 {[%clk 0:02:31.3]} 12...
g6 {[%clk 0:02:23.8]} 13. Ne2 {[%clk 0:02:30.7]} 13... Nxe2+ {[%clk 0:02:17.3]}
14. Bxe2 {[%clk 0:02:30.6]} 14... Bg7 {[%clk 0:02:18.2]} 15. Be3 {[%clk
0:02:24.1]} 15... O-O {[%clk 0:02:16.3]} 16. b4 {[%clk 0:02:23.6]} 16... Qe7
{[%clk 0:02:08.5]} 17. Rab1 {[%clk 0:02:20.6]} 17... f5 {[%clk 0:02:03.4]} 18.
Bg5 {[%clk 0:02:11.3]} 18... Qf7 {[%clk 0:02:02.3]} 19. exf5 {[%clk 0:01:49.3]}
19... gxf5 {[%clk 0:02:03.2]} 20. f4 {[%clk 0:01:44.8]} 20... Kh8 {[%clk
0:02:01.1]} 21. Bf3 {[%clk 0:01:37.5]} 21... Rae8 {[%clk 0:01:55.9]} 22. Rfe1
{[%clk 0:01:36.6]} 22... Rg8 {[%clk 0:01:48.9]} 23. Qh4 {[%clk 0:01:32.3]} 23...
Nf6 {[%clk 0:01:43.6]} 24. Bxf6 {[%clk 0:01:30.6]} 24... Bxf6 {[%clk 0:01:42.9]}
25. Qh6 {[%clk 0:01:19.8]} 25... Re7 {[%clk 0:01:22.7]} 26. b5 {[%clk
0:01:05.5]} 26... axb5 {[%clk 0:01:19.2]} 27. cxb5 {[%clk 0:01:05.5]} 27... c5
{[%clk 0:01:15.2]} 28. a4 {[%clk 0:00:55.2]} 28... b6 {[%clk 0:01:13.6]} 29. a5
{[%clk 0:00:49.2]} 29... bxa5 {[%clk 0:01:13.4]} 30. b6 {[%clk 0:00:50.1]} 30...
e4 {[%clk 0:01:02.3]} 31. dxe4 {[%clk 0:00:49.6]} 31... Bd4+ {[%clk 0:01:03.2]}
32. Kh1 {[%clk 0:00:47.8]} 32... Rge8 {[%clk 0:01:00.4]} 33. Bh5 {[%clk
0:00:45.4]} 33... Qg7 {[%clk 0:00:46.1]} 34. Qxd6 {[%clk 0:00:38.6]} 34... Rg8
{[%clk 0:00:43.6]} 35. Bf3 {[%clk 0:00:38.7]} 35... fxe4 {[%clk 0:00:41.8]} 36.
Rxe4 {[%clk 0:00:38.5]} 36... Rd7 {[%clk 0:00:39.5]} 37. Qe6 {[%clk 0:00:31.5]}
37... a4 {[%clk 0:00:36.3]} 38. Re2 {[%clk 0:00:30.2]} 38... a3 {[%clk
0:00:32.2]} 39. b7 {[%clk 0:00:28.7]} 39... Rdd8 {[%clk 0:00:31.4]} 40. Bd5
{[%clk 0:00:24.2]} 40... Rgf8 {[%clk 0:00:27.2]} 41. b8=Q {[%clk 0:00:17.3]}
41... Rxb8 {[%clk 0:00:27.2]} 42. Rxb8 {[%clk 0:00:17.1]} 42... Rxb8 {[%clk
0:00:28.1]} 43. Qe8+ {[%clk 0:00:17.5]} 43... Qf8 {[%clk 0:00:28.8]} 44. Qd7
{[%clk 0:00:10]} 44... Rd8 {[%clk 0:00:27.8]} 45. Qe6 {[%clk 0:00:08.5]} 45...
Qxf4 {[%clk 0:00:24.4]} 46. Re1 {[%clk 0:00:08.7]} 46... Qf6 {[%clk 0:00:21.7]}
47. Qe4 {[%clk 0:00:06.6]} 47... Rf8 {[%clk 0:00:19.6]} 48. Bc4 {[%clk
0:00:05.7]} 48... Qf2 {[%clk 0:00:19.2]} 49. Rf1 {[%clk 0:00:03.8]} 49... Qxf1+
{[%clk 0:00:16.4]} 50. Bxf1 {[%clk 0:00:04.7]} 50... Rxf1+ {[%clk 0:00:16.8]}
51. Kh2 {[%clk 0:00:05.6]} 51... Rf8 {[%clk 0:00:15.8]} 52. Qd5 {[%clk
0:00:05.1]} 52... Kg7 {[%clk 0:00:14.9]} 53. h4 {[%clk 0:00:05]} 53... h6 {[%clk
0:00:14.1]} 54. Kh3 {[%clk 0:00:05.2]} 54... Rf4 {[%clk 0:00:10.2]} 55. g3
{[%clk 0:00:05.5]} 55... Rf7 {[%clk 0:00:09.9]} 56. h5 {[%clk 0:00:05.5]} 56...
Rf6 {[%clk 0:00:09.5]} 57. Qd7+ {[%clk 0:00:05.1]} 57... Kf8 {[%clk 0:00:09.7]}
58. Qd5 {[%clk 0:00:05.8]} 58... Ke7 {[%clk 0:00:10]} 59. g4 {[%clk 0:00:05.2]}
59... Rd6 {[%clk 0:00:09.9]} 60. Qe4+ {[%clk 0:00:05]} 60... Kd7 {[%clk
0:00:10]} 61. Qb7+ {[%clk 0:00:05]} 61... Kd8 {[%clk 0:00:10.5]} 62. Qb8+ {[%clk
0:00:05.1]} 62... Ke7 {[%clk 0:00:11]} 63. Qb7+ {[%clk 0:00:05.6]} 63... Ke6
{[%clk 0:00:11.5]} 64. Qe4+ {[%clk 0:00:06]} 64... Kf6 {[%clk 0:00:11.3]} 65.
Qf5+ {[%clk 0:00:05.7]} 65... Ke7 {[%clk 0:00:11.7]} 66. g5 {[%clk 0:00:05.9]}
66... hxg5 {[%clk 0:00:11.5]} 67. Qxg5+ {[%clk 0:00:06.3]} 67... Bf6 {[%clk
0:00:09.1]} 68. Qe3+ {[%clk 0:00:06.5]} 68... Re6 {[%clk 0:00:08.8]} 69. Qxc5+
{[%clk 0:00:06.3]} 69... Kf7 {[%clk 0:00:08.6]} 70. Qxa3 {[%clk 0:00:06.7]}
70... Bg5 {[%clk 0:00:07.9]} 71. Qb3 {[%clk 0:00:06.6]} 71... Bh6 {[%clk
0:00:08]} 72. Kg4 {[%clk 0:00:06.5]} 72... Ke7 {[%clk 0:00:08]} 73. Qb7+ {[%clk
0:00:07.1]} 73... Kf6 {[%clk 0:00:08]} 74. Qf3+ {[%clk 0:00:06.7]} 74... Ke5
{[%clk 0:00:08]} 75. Qf5+ {[%clk 0:00:06.5]} 75... Kd6 {[%clk 0:00:08.7]} 76.
Qd3+ {[%clk 0:00:06.5]} 76... Ke5 {[%clk 0:00:09]} 77. Qe2+ {[%clk 0:00:06.3]}
77... Kf6 {[%clk 0:00:09.2]} 78. Qf3+ {[%clk 0:00:06.7]} 78... Ke5 {[%clk
0:00:09.8]} 79. Qf5+ {[%clk 0:00:06.9]} 79... Kd6 {[%clk 0:00:10.3]} 80. Qd3+
{[%clk 0:00:06.3]} 80... Ke5 {[%clk 0:00:10.6]} 81. Qc3+ {[%clk 0:00:05.9]}
81... Kd5 {[%clk 0:00:10.6]} 82. Qb3+ {[%clk 0:00:05.9]} 82... Ke5 {[%clk
0:00:10.8]} 83. Qb5+ {[%clk 0:00:03.5]} 83... Ke4 {[%clk 0:00:10.6]} 84. Qf5+
{[%clk 0:00:03.6]} 1-0

[Event "Early-Titled-Tuesday-Blitz-February-13-2024"]
[Site "Chess.com"]
[Date "2024.02.13"]
[Round "1"]
[White "ChessSkool"]
[Black "Rozhkov_V"]
[Result "1/2-1/2"]
[WhiteElo "2688"]
[BlackElo "2379"]
[TimeControl "180+1"]
[EndTime "8:09:51 PST"]
[Termination "Game drawn by 50-move rule"]

1. d4 {[%clk 0:03:00.9]} 1... d5 {[%clk 0:02:59.9]} 2. Nf3 {[%clk 0:03:00.3]}
2... Nf6 {[%clk 0:02:59.9]} 3. c3 {[%clk 0:03:00.6]} 3... Bf5 {[%clk 0:02:58.2]}
4. Qb3 {[%clk 0:02:59.7]} 4... Qc8 {[%clk 0:02:56.6]} 5. c4 {[%clk 0:02:59.6]}
5... c6 {[%clk 0:02:55.5]} 6. Nc3 {[%clk 0:02:57.7]} 6... e6 {[%clk 0:02:55.4]}
7. Bf4 {[%clk 0:02:55.5]} 7... Be7 {[%clk 0:02:52.9]} 8. Rc1 {[%clk 0:02:51.8]}
8... O-O {[%clk 0:02:48.4]} 9. cxd5 {[%clk 0:02:50.9]} 9... exd5 {[%clk
0:02:48.4]} 10. e3 {[%clk 0:02:50.3]} 10... Nbd7 {[%clk 0:02:36.5]} 11. h3
{[%clk 0:02:50.4]} 11... h6 {[%clk 0:02:34.7]} 12. Be2 {[%clk 0:02:49.9]} 12...
a5 {[%clk 0:02:30.3]} 13. O-O {[%clk 0:02:48.7]} 13... g5 {[%clk 0:02:21.3]} 14.
Bg3 {[%clk 0:02:45.2]} 14... Kg7 {[%clk 0:02:15.5]} 15. Ne5 {[%clk 0:02:40.7]}
15... Bd6 {[%clk 0:01:40.7]} 16. Nxc6 {[%clk 0:02:16.3]} 16... Qxc6 {[%clk
0:01:34.6]} 17. Nb5 {[%clk 0:02:16.3]} 17... Qb6 {[%clk 0:00:42.2]} 18. Nxd6
{[%clk 0:01:56.8]} 18... Bg6 {[%clk 0:00:41.4]} 19. Qxb6 {[%clk 0:01:31.8]}
19... Nxb6 {[%clk 0:00:42.3]} 20. Nxb7 {[%clk 0:01:32.4]} 20... Ne4 {[%clk
0:00:42.8]} 21. Bc7 {[%clk 0:01:24.7]} 21... Na4 {[%clk 0:00:40.1]} 22. Nxa5
{[%clk 0:00:32.8]} 22... Rfc8 {[%clk 0:00:36.2]} 23. Bh2 {[%clk 0:00:11.9]}
23... Rxc1 {[%clk 0:00:34.6]} 24. Rxc1 {[%clk 0:00:12.5]} 24... Rxa5 {[%clk
0:00:35.2]} 25. Be5+ {[%clk 0:00:11.3]} 25... f6 {[%clk 0:00:34.9]} 26. Rc7+
{[%clk 0:00:11.5]} 26... Kf8 {[%clk 0:00:33.9]} 27. b4 {[%clk 0:00:08.7]} 27...
Ra8 {[%clk 0:00:29.3]} 28. Bh2 {[%clk 0:00:08.9]} 28... Nac3 {[%clk 0:00:29.6]}
29. Bf1 {[%clk 0:00:08]} 29... Rxa2 {[%clk 0:00:29.3]} 30. f3 {[%clk 0:00:08.6]}
30... Ne2+ {[%clk 0:00:24.8]} 31. Bxe2 {[%clk 0:00:08.5]} 31... Rxe2 {[%clk
0:00:25.7]} 32. fxe4 {[%clk 0:00:07.6]} 32... Bxe4 {[%clk 0:00:26.6]} 33. Bd6+
{[%clk 0:00:08.1]} 33... Kg8 {[%clk 0:00:25.1]} 34. b5 {[%clk 0:00:07.2]} 34...
Rxg2+ {[%clk 0:00:24.6]} 35. Kf1 {[%clk 0:00:07.8]} 35... Rb2 {[%clk 0:00:23.8]}
36. Be7 {[%clk 0:00:04.3]} 36... Rxb5 {[%clk 0:00:16.9]} 37. Bxf6 {[%clk
0:00:04.5]} 37... Rb2 {[%clk 0:00:16]} 38. Bg7 {[%clk 0:00:03.5]} 38... h5
{[%clk 0:00:15.9]} 39. Bf6 {[%clk 0:00:03.1]} 39... g4 {[%clk 0:00:13.6]} 40.
hxg4 {[%clk 0:00:04]} 40... hxg4 {[%clk 0:00:14.5]} 41. Rg7+ {[%clk 0:00:04.2]}
41... Kf8 {[%clk 0:00:15.1]} 42. Rxg4 {[%clk 0:00:04.5]} 42... Kf7 {[%clk
0:00:15.4]} 43. Be5 {[%clk 0:00:04.8]} 43... Ke6 {[%clk 0:00:15.9]} 44. Bf4
{[%clk 0:00:04.9]} 44... Rc2 {[%clk 0:00:13.6]} 45. Rg5 {[%clk 0:00:05.4]} 45...
Rb2 {[%clk 0:00:13.1]} 46. Ke1 {[%clk 0:00:06.3]} 46... Rc2 {[%clk 0:00:12.7]}
47. Re5+ {[%clk 0:00:07.2]} 47... Kf6 {[%clk 0:00:12.3]} 48. Kd1 {[%clk
0:00:08.1]} 48... Ra2 {[%clk 0:00:12.3]} 49. Rg5 {[%clk 0:00:07.6]} 49... Bf3+
{[%clk 0:00:11.9]} 50. Kc1 {[%clk 0:00:07.8]} 50... Be4 {[%clk 0:00:12.8]} 51.
Re5 {[%clk 0:00:07.7]} 51... Rc2+ {[%clk 0:00:12.6]} 52. Kd1 {[%clk 0:00:08.4]}
52... Ra2 {[%clk 0:00:13]} 53. Re8 {[%clk 0:00:06.9]} 53... Bf3+ {[%clk
0:00:12.6]} 54. Kc1 {[%clk 0:00:06.6]} 54... Be4 {[%clk 0:00:13.2]} 55. Rf8+
{[%clk 0:00:05.8]} 55... Kg6 {[%clk 0:00:12.5]} 56. Rg8+ {[%clk 0:00:05.9]}
56... Kf5 {[%clk 0:00:12.9]} 57. Rg5+ {[%clk 0:00:06.1]} 57... Kf6 {[%clk
0:00:13.4]} 58. Rh5 {[%clk 0:00:05.8]} 58... Rc2+ {[%clk 0:00:13.5]} 59. Kd1
{[%clk 0:00:06.4]} 59... Ra2 {[%clk 0:00:14]} 60. Rh6+ {[%clk 0:00:05.7]} 60...
Kf5 {[%clk 0:00:14]} 61. Kc1 {[%clk 0:00:05.5]} 61... Kg4 {[%clk 0:00:13.5]} 62.
Rb6 {[%clk 0:00:04.9]} 62... Rc2+ {[%clk 0:00:10.3]} 63. Kd1 {[%clk 0:00:04.7]}
63... Kf3 {[%clk 0:00:10.5]} 64. Rh6 {[%clk 0:00:04.9]} 64... Ra2 {[%clk
0:00:09.6]} 65. Rh3+ {[%clk 0:00:05.4]} 65... Kg4 {[%clk 0:00:09.4]} 66. Rg3+
{[%clk 0:00:05.9]} 66... Kf5 {[%clk 0:00:09.7]} 67. Rg5+ {[%clk 0:00:06.1]}
67... Kf6 {[%clk 0:00:10.3]} 68. Ke1 {[%clk 0:00:06.7]} 68... Ke6 {[%clk
0:00:09.3]} 69. Kf1 {[%clk 0:00:07]} 69... Kf6 {[%clk 0:00:09.6]} 70. Kg1 {[%clk
0:00:07.3]} 70... Ke6 {[%clk 0:00:10.1]} 71. Rg3 {[%clk 0:00:06.7]} 71... Kf5
{[%clk 0:00:09.4]} 72. Be5 {[%clk 0:00:07]} 72... Ke6 {[%clk 0:00:08.9]} 73. Bf4
{[%clk 0:00:06.5]} 73... Kf5 {[%clk 0:00:09.2]} 74. Rg8 {[%clk 0:00:06.4]} 74...
Kf6 {[%clk 0:00:09.1]} 75. Bg3 {[%clk 0:00:05.5]} 75... Kf5 {[%clk 0:00:08.4]}
76. Bf2 {[%clk 0:00:05.9]} 76... Kf6 {[%clk 0:00:06.6]} 77. Rf8+ {[%clk
0:00:05.2]} 77... Kg7 {[%clk 0:00:06.5]} 78. Rf4 {[%clk 0:00:06.1]} 78... Kg6
{[%clk 0:00:05.7]} 79. Kh2 {[%clk 0:00:06.7]} 79... Kg5 {[%clk 0:00:05.9]} 80.
Kg3 {[%clk 0:00:07.1]} 80... Rb2 {[%clk 0:00:04.4]} 81. Rg4+ {[%clk 0:00:07.4]}
81... Kf5 {[%clk 0:00:05]} 82. Rh4 {[%clk 0:00:07.8]} 82... Kg5 {[%clk
0:00:04.3]} 83. Rh8 {[%clk 0:00:07.5]} 83... Kf5 {[%clk 0:00:04.1]} 84. Rf8+
{[%clk 0:00:07.4]} 84... Kg5 {[%clk 0:00:04.6]} 85. Rg8+ {[%clk 0:00:07.3]}
85... Kf5 {[%clk 0:00:04.7]} 86. Rf8+ {[%clk 0:00:05.7]} 86... Kg5 {[%clk
0:00:05.1]} 87. Rf7 {[%clk 0:00:06.2]} 87... Kg6 {[%clk 0:00:05]} 88. Rf4 {[%clk
0:00:05.4]} 88... Kg5 {[%clk 0:00:05.5]} 89. Kh3 {[%clk 0:00:05.1]} 89... Rc2
{[%clk 0:00:04.9]} 90. Bh4+ {[%clk 0:00:05.2]} 90... Kg6 {[%clk 0:00:04.8]} 91.
Bf2 {[%clk 0:00:04]} 91... Kg5 {[%clk 0:00:04.3]} 92. Kh2 {[%clk 0:00:04.2]}
1/2-1/2